fUST/lending_fUST_20250725
["ID","MTS","AMOUNT","RATE_DAILY","PERIOD"]
[374854698,1753456241464,-460.0,0.00019726,2]
[374854700,1753456241474,-671.63,0.00019726,2]
[374854702,1753456241483,-460.0,0.00019726,2]
[374854703,1753456241492,-460.0,0.00019726,2]
[374854705,1753456241501,-460.0,0.00019726,2]
[374854707,1753456241510,-460.0,0.00019726,2]
[374854709,1753456241519,-3307.25,0.00019726,2]
[374854710,1753456241528,-460.0,0.00019726,2]
[374854712,1753456241538,-884.04,0.00019726,2]
[374854714,1753456241547,-460.0,0.00019726,2]
[374854716,1753456241556,-460.0,0.00019726,2]
[374854717,1753456241565,-460.0,0.00019726,2]
[374854719,1753456241575,-460.0,0.00019726,2]
[374854721,1753456241584,-460.0,0.00019726,2]
[374854723,1753456241593,-460.0,0.00019726,2]
[374854725,1753456241603,-460.0,0.00019726,2]
[374854726,1753456241612,-160.0,0.00019732,2]
[374854728,1753456241621,-1680.0,0.00019801,2]
[374854730,1753456241630,-269.35390663,0.000199,2]
[374854732,1753456241639,-555.0,0.0002,2]
[374854734,1753456241648,-255.0,0.0002,2]
[374854735,1753456241660,-500.0,0.0002,2]
[374854737,1753456241669,-245.0,0.0002,2]
[374854739,1753456241679,-198.0,0.0002,2]
[374854741,1753456241688,-151.0,0.0002,2]
[374854743,1753456241697,-151.0,0.0002,2]
[374854745,1753456241708,-151.58359639,0.0002,2]
[374854746,1753456241725,-151.0,0.0002,2]
[374854748,1753456241735,-151.0,0.0002,2]
[374854750,1753456241744,-151.0,0.0002,2]
[374854752,1753456241754,-151.0,0.0002,2]
[374854753,1753456241767,-151.0,0.0002,2]
[374854755,1753456241776,-275.48504365,0.0002,2]
[374854757,1753456241785,-151.0,0.0002,2]
[374854759,1753456241795,-151.0,0.0002,2]
[374854761,1753456241804,-460.0,0.0002,2]
[374854763,1753456241813,-460.0,0.0002,2]
[374854764,1753456241822,-460.0,0.0002,2]
[374854766,1753456241831,-198.39848728,0.0002,2]
[374854768,1753456241841,-460.0,0.0002,2]
[374854770,1753456241850,-460.0,0.0002,2]
[374854772,1753456241859,-460.0,0.0002,2]
[374854773,1753456241869,-1023.56,0.0002,2]
[374854775,1753456241879,-460.0,0.0002,2]
[374854777,1753456241888,-460.0,0.0002,2]
[374854779,1753456241903,-460.0,0.0002,2]
[374854780,1753456241913,-238.87140487,0.0002,2]
[374854782,1753456241922,-460.0,0.0002,2]
[374854784,1753456241932,-460.0,0.0002,2]
[374854786,1753456241941,-1338.16,0.0002,2]
[374854788,1753456241950,-460.0,0.0002,2]
[374854789,1753456241960,-460.0,0.0002,2]
[374854791,1753456241970,-1139.23,0.0002,2]
[374854793,1753456241981,-460.0,0.0002,2]
[374854795,1753456241990,-460.0,0.0002,2]
[374854797,1753456241999,-460.0,0.0002,2]
[374854799,1753456242008,-460.0,0.0002,2]
[374854800,1753456242017,-460.0,0.0002,2]
[374854802,1753456242026,-460.0,0.0002,2]
[374854804,1753456242036,-460.0,0.0002,2]
[374854806,1753456242045,-460.0,0.0002,2]
[374854808,1753456242055,-199.98117311,0.0002,2]
[374854809,1753456242064,-475.18775664,0.0002,2]
[374854811,1753456242074,-306.98227773,0.0002,2]
[374854813,1753456242083,-460.0,0.0002,2]
[374854815,1753456242092,-460.0,0.0002,2]
[374854817,1753456242102,-460.0,0.0002,2]
[374854819,1753456242114,-632.61,0.0002,2]
[374854820,1753456242124,-460.0,0.0002,2]
[374854822,1753456242134,-460.0,0.0002,2]
[374854824,1753456242143,-671.63,0.0002,2]
[374854826,1753456242154,-460.0,0.0002,2]
[374854828,1753456242164,-580.38,0.0002,2]
[374854829,1753456242173,-3307.25,0.0002,2]
[374854831,1753456242183,-460.0,0.0002,2]
[374854833,1753456242193,-884.04,0.0002,2]
[374854835,1753456242202,-460.0,0.0002,2]
[374854837,1753456242212,-460.0,0.0002,2]
[374854838,1753456242222,-460.0,0.0002,2]
[374854840,1753456242232,-460.0,0.0002,2]
[374854842,1753456242242,-460.0,0.0002,2]
[374854844,1753456242252,-460.0,0.0002,2]
[374854846,1753456242261,-352.84027876,0.0002,2]
[374854848,1753456242271,-268.94902316,0.00020039,2]
[374854849,1753456242280,-269.35390642,0.00020107,2]
[374854851,1753456242289,-617.321753,0.00020187,2]
[374854853,1753456242299,-400.97,0.00020224,2]
[374854855,1753456242308,-1500.0,0.00020268,2]
[374854857,1753456242318,-500.0,0.0002027,2]
[374854859,1753456242328,-500.0,0.0002027,2]
[374854860,1753456242338,-460.0,0.00020273,2]
[374854862,1753456242347,-460.0,0.00020273,2]
[374854864,1753456242357,-460.0,0.00020273,2]
[374854866,1753456242366,-460.0,0.00020273,2]
[374854868,1753456242375,-1023.56,0.00020273,2]
[374854870,1753456242385,-460.0,0.00020273,2]
[374854872,1753456242394,-460.0,0.00020273,2]
[374854875,1753456242405,-460.0,0.00020273,2]
[374854878,1753456242416,-460.0,0.00020273,2]
[374854879,1753456242426,-1338.16,0.00020273,2]
[374854881,1753456242436,-460.0,0.00020273,2]
[374854883,1753456242446,-460.0,0.00020273,2]
[374854885,1753456242456,-1139.23,0.00020273,2]
[374854887,1753456242475,-460.0,0.00020273,2]
[374854889,1753456242491,-460.0,0.00020273,2]
[374854892,1753456242511,-460.0,0.00020273,2]
[374854894,1753456242525,-460.0,0.00020273,2]
[374854896,1753456242534,-460.0,0.00020273,2]
[374854898,1753456242544,-460.0,0.00020273,2]
[374854902,1753456242553,-460.0,0.00020273,2]
[374854905,1753456242563,-460.0,0.00020273,2]
[374854909,1753456242573,-460.0,0.00020273,2]
[374854914,1753456242582,-460.0,0.00020273,2]
[374854917,1753456242592,-460.0,0.00020273,2]
[374854921,1753456242601,-632.61,0.00020273,2]
[374854924,1753456242611,-460.0,0.00020273,2]
[374854927,1753456242620,-460.0,0.00020273,2]
[374854929,1753456242629,-671.63,0.00020273,2]
[374854932,1753456242639,-460.0,0.00020273,2]
[374854934,1753456242648,-3307.25,0.00020273,2]
[374854937,1753456242662,-460.0,0.00020273,2]
[374854939,1753456242672,-884.04,0.00020273,2]
[374854941,1753456242681,-460.0,0.00020273,2]
[374854943,1753456242691,-460.0,0.00020273,2]
[374854944,1753456242700,-460.0,0.00020273,2]
[374854946,1753456242710,-460.0,0.00020273,2]
[374854948,1753456242720,-460.0,0.00020273,2]
[374854950,1753456242729,-460.0,0.00020273,2]
[374854952,1753456242738,-555.0,0.00020274,2]
[374854954,1753456242748,-500.0,0.00020274,2]
[374854956,1753456242757,-151.0,0.00020274,2]
[374854957,1753456242767,-151.0,0.00020274,2]
[374854959,1753456242776,-151.0,0.00020274,2]
[374854961,1753456242786,-151.0,0.00020274,2]
[374854963,1753456242795,-260.0,0.0002028,2]
[374854965,1753456242804,-269.35390642,0.00020314,3]
[374854966,1753456242813,-269.35390642,0.00020521,3]
[374854968,1753456242823,-460.0,0.00020547,2]
[374854970,1753456242833,-460.0,0.00020547,2]
[374854972,1753456242843,-460.0,0.00020547,2]
[374854974,1753456242851,-460.0,0.00020547,2]
[374854976,1753456242861,-1023.56,0.00020547,2]
[374854977,1753456242870,-460.0,0.00020547,2]
[374854979,1753456242880,-460.0,0.00020547,2]
[374854981,1753456242889,-460.0,0.00020547,2]
[374854983,1753456242902,-460.0,0.00020547,2]
[374854985,1753456242915,-1338.16,0.00020547,2]
[374854987,1753456242924,-460.0,0.00020547,2]
[374854989,1753456242935,-460.0,0.00020547,2]
[374854990,1753456242944,-1139.23,0.00020547,2]
[374854992,1753456242955,-460.0,0.00020547,2]
[374854994,1753456242964,-460.0,0.00020547,2]
[374854996,1753456242976,-460.0,0.00020547,2]
[374854998,1753456242986,-460.0,0.00020547,2]
[374855000,1753456242995,-460.0,0.00020547,2]
[374855002,1753456243005,-460.0,0.00020547,2]
[374855004,1753456243015,-460.0,0.00020547,2]
[374855006,1753456243024,-460.0,0.00020547,2]
[374855007,1753456243034,-224.10116715,0.00020547,2]
[374855009,1753456243044,-460.0,0.00020547,2]
[374855011,1753456243054,-460.0,0.00020547,2]
[374855013,1753456243063,-632.61,0.00020547,2]
[374855015,1753456243073,-460.0,0.00020547,2]
[374855017,1753456243082,-460.0,0.00020547,2]
[374855019,1753456243091,-671.63,0.00020547,2]
[374855029,1753456243199,-460.0,0.00020547,2]
[374855031,1753456243209,-3307.25,0.00020547,2]
[374855033,1753456243218,-565.52104375,0.00020547,2]
[374855035,1753456243228,-884.04,0.00020547,2]
[374855037,1753456243237,-531.47170609,0.00020547,2]
[374855039,1753456243247,-460.0,0.00020547,2]
[374855041,1753456243257,-460.0,0.00020547,2]
[374855042,1753456243266,-460.0,0.00020547,2]
[374855044,1753456243276,-460.0,0.00020547,2]
[374855047,1753456243286,-460.0,0.00020547,2]
[374855049,1753456243297,-555.0,0.00020548,2]
[374855051,1753456243308,-500.0,0.00020548,2]
[374855053,1753456243317,-214.32440616,0.00020548,2]
[374855055,1753456243326,-151.0,0.00020548,2]
[374855057,1753456243336,-151.0,0.00020548,2]
[374855058,1753456243345,-500.0,0.00020607,2]
[374855060,1753456243355,-711.54108139,0.00020716,2]
[374855062,1753456243365,-3809.3687613,0.00020721,2]
[374855064,1753456243374,-269.35390642,0.00020728,3]
[374855066,1753456243384,-3000.0,0.000208,2]
[374855068,1753456243393,-3000.0,0.0002081,2]
[374855070,1753456243405,-1981.92564782,0.00020816,2]
[374855071,1753456243414,-1000.0,0.00020818,2]
[374855073,1753456243423,-3000.0,0.0002082,2]
[374855075,1753456243433,-460.0,0.00020821,2]
[374855077,1753456243443,-460.0,0.00020821,2]
[374855079,1753456243453,-500.68,0.00020821,2]
[374855081,1753456243463,-460.0,0.00020821,2]
[374855083,1753456243472,-1023.56,0.00020821,2]
[374855084,1753456243481,-460.0,0.00020821,2]
[374855086,1753456243490,-460.0,0.00020821,2]
[374855088,1753456243501,-460.0,0.00020821,2]
[374855090,1753456243510,-460.0,0.00020821,2]
[374855092,1753456243519,-1338.16,0.00020821,2]
[374855094,1753456243528,-460.0,0.00020821,2]
[374855096,1753456243537,-460.0,0.00020821,2]
[374855097,1753456243546,-1139.23,0.00020821,2]
[374855099,1753456243556,-460.0,0.00020821,2]
[374855101,1753456243566,-460.0,0.00020821,2]
[374855103,1753456243576,-460.0,0.00020821,2]
[374855105,1753456243585,-460.0,0.00020821,2]
[374855107,1753456243594,-460.0,0.00020821,2]
[374855109,1753456243603,-460.0,0.00020821,2]
[374855110,1753456243613,-460.0,0.00020821,2]
[374855112,1753456243622,-460.0,0.00020821,2]
[374855114,1753456243632,-632.61,0.00020821,2]
[374855116,1753456243641,-460.0,0.00020821,2]
[374855118,1753456243650,-460.0,0.00020821,2]
[374855120,1753456243661,-671.63,0.00020821,2]
[374855121,1753456243670,-460.0,0.00020821,2]
[374855123,1753456243680,-3307.25,0.00020821,2]
[374855125,1753456243689,-884.04,0.00020821,2]
[374855127,1753456243699,-460.0,0.00020821,2]
[374855129,1753456243708,-460.0,0.00020821,2]
[374855131,1753456243717,-460.0,0.00020821,2]
[374855133,1753456243726,-460.0,0.00020821,2]
[374855134,1753456243736,-460.0,0.00020821,2]
[374855136,1753456243746,-555.0,0.00020822,2]
[374855138,1753456243758,-500.0,0.00020822,2]
[374855140,1753456243774,-198.0,0.00020822,2]
[374855142,1753456243794,-151.0,0.00020822,2]
[374855144,1753456243804,-360.0,0.00020827,2]
[374855146,1753456243815,-3000.0,0.0002083,2]
[374855147,1753456243825,-3000.0,0.0002084,2]
[374855149,1753456243834,-3000.0,0.0002085,2]
[374855151,1753456243844,-3000.0,0.0002086,2]
[374855153,1753456243854,-3000.0,0.0002087,2]
[374855155,1753456243865,-3000.0,0.0002088,2]
[374855157,1753456243874,-3000.0,0.0002089,2]
[374855159,1753456243884,-3000.0,0.000209,2]
[374855161,1753456243895,-3000.0,0.0002091,2]
[374855162,1753456243906,-3000.0,0.0002092,2]
[374855164,1753456243915,-3000.0,0.0002093,2]
[374855166,1753456243925,-269.35390642,0.00020934,4]
[374855168,1753456243934,-3000.0,0.0002094,2]
[374855170,1753456243946,-3000.0,0.0002095,2]
[374855172,1753456243955,-3000.0,0.0002096,2]
[374855174,1753456243964,-3000.0,0.0002097,2]
[374855175,1753456243976,-3000.0,0.0002098,2]
[374855177,1753456243986,-3000.0,0.0002099,2]
[374855179,1753456243995,-3000.0,0.00021,2]
[374855181,1753456244006,-3000.0,0.00021,2]
[374855183,1753456244015,-268.94902316,0.00021001,2]
[374855185,1753456244024,-3000.0,0.0002101,2]
[374855187,1753456244034,-3000.0,0.0002101,2]
[374855188,1753456244043,-3000.0,0.0002102,2]
[374855190,1753456244053,-3000.0,0.0002102,2]
[374855192,1753456244062,-3000.0,0.0002103,2]
[374855194,1753456244072,-3000.0,0.0002103,2]
[374855196,1753456244082,-3000.0,0.0002104,2]
[374855198,1753456244092,-3000.0,0.0002104,2]
[374855200,1753456244103,-3000.0,0.0002105,2]
[374855202,1753456244112,-3000.0,0.0002105,2]
[374855203,1753456244121,-3000.0,0.0002106,2]
[374855205,1753456244131,-3000.0,0.0002106,2]
[374855207,1753456244140,-3000.0,0.0002107,2]
[374855209,1753456244149,-3000.0,0.0002107,2]
[374855211,1753456244160,-500.0,0.00021073,2]
[374855213,1753456244169,-500.0,0.00021073,2]
[374855214,1753456244178,-500.0,0.00021073,2]
[374855216,1753456244188,-500.0,0.00021073,2]
[374855218,1753456244197,-500.0,0.00021073,2]
[374855220,1753456244206,-500.0,0.00021073,2]
[374855222,1753456244215,-500.0,0.00021073,2]
[374855224,1753456244225,-500.43649988,0.00021073,2]
[374855225,1753456244234,-626.30752255,0.00021073,2]
[374855227,1753456244243,-500.0,0.00021073,2]
[374855229,1753456244253,-500.0,0.00021073,2]
[374855231,1753456244262,-3000.0,0.0002108,2]
[374855233,1753456244272,-3000.0,0.0002108,2]
[374855235,1753456244281,-3000.0,0.0002109,2]
[374855237,1753456244290,-3000.0,0.0002109,2]
[374855238,1753456244300,-460.0,0.00021095,2]
[374855240,1753456244309,-460.0,0.00021095,2]
[374855242,1753456244318,-460.0,0.00021095,2]
[374855244,1753456244328,-1023.56,0.00021095,2]
[374855246,1753456244337,-460.0,0.00021095,2]
[374855248,1753456244346,-460.0,0.00021095,2]
[374855250,1753456244357,-460.0,0.00021095,2]
[374855252,1753456244366,-460.0,0.00021095,2]
[374855253,1753456244376,-1338.16,0.00021095,2]
[374855255,1753456244386,-258.44214248,0.00021095,2]
[374855257,1753456244395,-460.0,0.00021095,2]
[374855259,1753456244407,-1139.23,0.00021095,2]
[374855261,1753456244416,-460.0,0.00021095,2]
[374855262,1753456244425,-460.0,0.00021095,2]
[374855263,1753456244434,-460.0,0.00021095,2]
[374855264,1753456244443,-460.0,0.00021095,2]
[374855266,1753456244452,-460.0,0.00021095,2]
[374855268,1753456244461,-460.0,0.00021095,2]
[374855270,1753456244470,-460.0,0.00021095,2]
[374855272,1753456244479,-632.61,0.00021095,2]
[374855273,1753456244488,-460.0,0.00021095,2]
[374855275,1753456244497,-170.32,0.00021095,2]
[374855277,1753456244507,-671.63,0.00021095,2]
[374855279,1753456244516,-460.0,0.00021095,2]
[374855281,1753456244525,-3307.25,0.00021095,2]
[374855283,1753456244534,-884.04,0.00021095,2]
[374855285,1753456244544,-512.38,0.00021095,2]
[374855286,1753456244553,-460.0,0.00021095,2]
[374855288,1753456244563,-460.0,0.00021095,2]
[374855290,1753456244572,-460.0,0.00021095,2]
[374855292,1753456244581,-460.0,0.00021095,2]
[374855294,1753456244590,-555.0,0.00021096,2]
[374855296,1753456244600,-500.0,0.00021096,2]
[374855298,1753456244609,-191.74231623,0.00021096,2]
[374855299,1753456244619,-3000.0,0.000211,2]
[374855301,1753456244629,-3000.0,0.000211,2]
[374855303,1753456244638,-7479.25965808,0.0002111,2]
[374855304,1753456244648,-3000.0,0.0002111,2]
[374855306,1753456244659,-3000.0,0.0002111,2]
[374855308,1753456244668,-3000.0,0.0002112,2]
[374855310,1753456244677,-3000.0,0.0002112,2]
[374855312,1753456244687,-3000.0,0.0002113,2]
[374855314,1753456244697,-3000.0,0.0002113,2]
[374855316,1753456244707,-3000.0,0.0002114,2]
[374855318,1753456244716,-3000.0,0.0002114,2]
[374855320,1753456244727,-269.35390642,0.00021141,4]
[374855322,1753456244736,-3000.0,0.0002115,2]
[374855324,1753456244746,-3000.0,0.0002115,2]
[374855326,1753456244755,-3000.0,0.0002116,2]
[374855328,1753456244765,-3000.0,0.0002116,2]
[374855330,1753456244775,-3000.0,0.0002117,2]
[374855332,1753456244784,-3000.0,0.0002117,2]
[374855334,1753456244794,-500.0,0.00021173,2]
[374855336,1753456244803,-472.58471755,0.00021173,2]
[374855337,1753456244812,-500.37542207,0.00021173,2]
[374855338,1753456244822,-214.7599002,0.00021174,2]
[374855339,1753456244831,-160.0,0.00021174,2]
[374855340,1753456244840,-160.0,0.00021174,2]
[374855341,1753456244850,-160.0,0.00021174,2]
[374855342,1753456244861,-231.20877768,0.00021174,2]
[374855343,1753456244871,-160.0,0.00021174,2]
[374855344,1753456244880,-215.93003454,0.00021174,2]
[374855345,1753456244890,-3000.0,0.0002118,2]
[374855346,1753456244904,-3000.0,0.0002118,2]
[374855347,1753456244915,-3000.0,0.0002119,2]
[374855348,1753456244924,-3000.0,0.0002119,2]
[374855349,1753456244934,-151.0,0.0002119,2]
[374855350,1753456244944,-3000.0,0.000212,2]
[374855351,1753456244953,-3000.0,0.000212,2]
[374855352,1753456244962,-151.0,0.000212,2]
[374855353,1753456244973,-151.0,0.000212,2]
[374855354,1753456244982,-151.0,0.000212,2]
[374855355,1753456244992,-151.0,0.000212,2]
[374855356,1753456245001,-151.0,0.000212,2]
[374855357,1753456245011,-151.0,0.000212,2]
[374855358,1753456245020,-151.0,0.000212,2]
[374855359,1753456245029,-527.472094,0.000212,2]
[374855360,1753456245039,-527.472094,0.000212,2]
[374855361,1753456245048,-3000.0,0.0002121,2]
[374855362,1753456245057,-3000.0,0.0002121,2]
[374855363,1753456245066,-151.0,0.0002121,2]
[374855364,1753456245075,-323.157208,0.0002121,2]
[374855365,1753456245085,-323.157208,0.0002121,2]
[374855366,1753456245094,-3000.0,0.0002122,2]
[374855367,1753456245103,-3000.0,0.0002122,2]
[374855368,1753456245113,-151.0,0.0002122,2]
[374855369,1753456245122,-302.976334,0.0002122,2]
[374855370,1753456245131,-302.976334,0.0002122,2]
[374855371,1753456245140,-3000.0,0.0002123,2]
[374855372,1753456245150,-3000.0,0.0002123,2]
[374855373,1753456245161,-178.723,0.0002124,2]
[374855374,1753456245170,-3000.0,0.0002124,2]
[374855375,1753456245180,-3000.0,0.0002124,2]
[374855376,1753456245189,-425.149,0.0002124,2]
[374855377,1753456245199,-3000.0,0.0002125,2]
[374855378,1753456245208,-3000.0,0.0002125,2]
[374855379,1753456245218,-3000.0,0.0002126,2]
[374855380,1753456245229,-3000.0,0.0002126,2]
[374855381,1753456245238,-151.0,0.0002126,2]
[374855382,1753456245247,-151.0,0.0002126,2]
[374855383,1753456245257,-151.0,0.0002126,2]
[374855384,1753456245267,-3000.0,0.0002127,2]
[374855385,1753456245277,-3000.0,0.0002127,2]
[374855386,1753456245286,-3000.0,0.0002128,2]
[374855387,1753456245295,-3000.0,0.0002128,2]
[374855389,1753456245306,-151.0,0.0002128,2]
[374855390,1753456245315,-5213.894778,0.0002129,2]
[374855391,1753456245325,-3000.0,0.0002129,2]
[374855393,1753456245334,-3000.0,0.000213,2]
[374855395,1753456245344,-3000.0,0.0002131,2]
[374855396,1753456245353,-3000.0,0.0002132,2]
[374855397,1753456245362,-3000.0,0.0002133,2]
[374855399,1753456245372,-3000.0,0.0002134,2]
[374855400,1753456245381,-269.35390642,0.00021348,5]
[374855401,1753456245391,-3000.0,0.0002135,2]
[374855403,1753456245401,-3000.0,0.0002136,2]
[374855406,1753456245412,-1500.0,0.00021366,2]
[374855409,1753456245422,-460.0,0.00021369,2]
[374855412,1753456245431,-460.0,0.00021369,2]
[374855414,1753456245440,-460.0,0.00021369,2]
[374855417,1753456245449,-1023.56,0.00021369,2]
[374855419,1753456245459,-460.0,0.00021369,2]
[374855420,1753456245469,-460.0,0.00021369,2]
[374855421,1753456245478,-460.0,0.00021369,2]
[374855422,1753456245487,-1338.16,0.00021369,2]
[374855423,1753456245497,-460.0,0.00021369,2]
[374855424,1753456245506,-1139.23,0.00021369,2]
[374855425,1753456245516,-460.0,0.00021369,2]
[374855426,1753456245525,-460.0,0.00021369,2]
[374855427,1753456245534,-460.0,0.00021369,2]
[374855428,1753456245543,-460.0,0.00021369,2]
[374855429,1753456245553,-460.0,0.00021369,2]
[374855430,1753456245562,-632.61,0.00021369,2]
[374855431,1753456245572,-671.63,0.00021369,2]
[374855432,1753456245583,-498.23653331,0.00021369,2]
[374855433,1753456245593,-3307.25,0.00021369,2]
[374855434,1753456245604,-884.04,0.00021369,2]
[374855435,1753456245613,-186.78,0.00021369,2]
[374855436,1753456245624,-460.0,0.00021369,2]
[374855437,1753456245633,-555.0,0.0002137,2]
[374855438,1753456245643,-500.0,0.0002137,2]
[374855439,1753456245653,-3000.0,0.0002137,2]
[374855440,1753456245663,-460.0,0.00021375,2]
[374855441,1753456245673,-3000.0,0.0002138,2]
[374855442,1753456245683,-3000.0,0.0002139,2]
[374855443,1753456245692,-3000.0,0.000214,2]
[374855444,1753456245702,-3000.0,0.0002141,2]
[374855445,1753456245805,-3000.0,0.0002142,2]
[374855446,1753456245815,-3000.0,0.0002143,2]
[374855447,1753456245824,-151.0,0.00021434,4]
[374855448,1753456245834,-3300.789547,0.0002144,2]
[374855449,1753456245850,-587.0,0.00021498,2]
[374855450,1753456245868,-269.35390642,0.00021555,5]
[374855451,1753456245878,-1000.0,0.00021621,2]
[374855452,1753456245887,-1014.30487784,0.00021621,2]
[374855453,1753456245900,-500.0,0.00021621,2]
[374855454,1753456245910,-639.9076075,0.00021621,2]
[374855455,1753456245920,-151.0,0.00021621,2]
[374855456,1753456245929,-164.78,0.00021643,2]
[374855457,1753456245938,-497.88685408,0.00021643,2]
[374855458,1753456245949,-151.0,0.00021643,7]
[374855459,1753456245959,-151.0,0.00021643,7]
[374855460,1753456245969,-151.0,0.00021643,7]
[374855461,1753456245979,-151.0,0.00021643,7]
[374855462,1753456245989,-151.0,0.00021643,7]
[374855463,1753456245999,-151.0,0.00021643,7]
[374855464,1753456246008,-151.0,0.00021643,7]
[374855465,1753456246018,-151.0,0.00021643,7]
[374855466,1753456246027,-227.92311,0.00021643,7]
[374855467,1753456246037,-460.0,0.00021643,2]
[374855468,1753456246046,-151.0,0.00021643,2]
[374855469,1753456246055,-151.0,0.00021643,2]
[374855470,1753456246065,-1023.56,0.00021643,2]
[374855471,1753456246074,-460.0,0.00021643,2]
[374855472,1753456246083,-151.0,0.00021643,2]
[374855473,1753456246092,-460.0,0.00021643,2]
[374855474,1753456246102,-161.141304,0.00021643,2]
[374855475,1753456246112,-460.0,0.00021643,2]
[374855476,1753456246121,-1338.16,0.00021643,2]
[374855477,1753456246130,-336.53313187,0.00021643,2]
[374855478,1753456246209,-123.46686813,0.00021643,2]
[374855479,1753456246219,-1139.23,0.00021643,2]
[374855480,1753456246230,-460.0,0.00021643,2]
[374855481,1753456246239,-460.0,0.00021643,2]
[374855482,1753456246249,-460.0,0.00021643,2]
[374855483,1753456246258,-460.0,0.00021643,2]
[374855484,1753456246268,-151.0,0.00021643,2]
[374855485,1753456246277,-151.0,0.00021643,2]
[374855486,1753456246286,-460.0,0.00021643,2]
[374855487,1753456246296,-632.61,0.00021643,2]
[374855488,1753456246305,-671.63,0.00021643,2]
[374855489,1753456246314,-3307.25,0.00021643,2]
[374855490,1753456246324,-884.04,0.00021643,2]
[374855491,1753456246333,-460.0,0.00021643,2]
[374855492,1753456246343,-323.157208,0.00021643,2]
[374855493,1753456246353,-323.157208,0.00021643,2]
[374855494,1753456246362,-527.472094,0.00021643,2]
[374855495,1753456246372,-527.472094,0.00021643,2]
[374855496,1753456246381,-555.0,0.00021644,2]
[374855497,1753456246391,-500.0,0.00021644,2]
[374855498,1753456246401,-2351.0,0.00021709,2]
[374855499,1753456246412,-711.54108135,0.00021737,2]
[374855500,1753456246422,-269.35390642,0.00021762,5]
[374855501,1753456246431,-151.0,0.00021899,4]
[374855502,1753456246441,-1600.0534406,0.00021914,2]
[374855503,1753456246451,-151.0,0.00021917,2]
[374855504,1753456246460,-302.976334,0.00021917,2]
[374855505,1753456246472,-92.0897655,0.00021917,2]
[374855506,1753456246505,-210.8865685,0.00021917,2]
[374855507,1753456246515,-239.45078345,0.00021917,2]
[374855542,1753456247120,-5000.0,0.0001788,2]
[374855544,1753456247130,-4404.67,0.0002109,10]
[374855546,1753456247140,-220.54921655,0.00021917,2]
[374855549,1753456247149,-1023.56,0.00021917,2]
[374855551,1753456247161,-460.0,0.00021917,2]
[374855553,1753456247171,-460.0,0.00021917,2]
[374855555,1753456247180,-460.0,0.00021917,2]
[374855556,1753456247190,-1338.16,0.00021917,2]
[374855559,1753456247199,-460.0,0.00021917,2]
[374855561,1753456247210,-1139.23,0.00021917,2]
[374855562,1753456247219,-460.0,0.00021917,2]
[374855565,1753456247229,-460.0,0.00021917,2]
[374855567,1753456247238,-181.76569934,0.00021917,2]